[Event "Titled Tuesday Blitz June 21 Late 2022"]
[White "Romero Ruscalleda, Josep"]
[Black "Tarigan, Gilbert Elroy"]
[WhiteFideId "2231859"]
[BlackFideId "7108133"]
[WhiteElo "2379"]
[BlackElo "1908"]
[Result "0-1"]
[Round "01"]
[TimeControl "180+1"]
[Date "2022.06.22"]
[WhiteClock "0:00:16"]
[BlackClock "0:00:20"]

1. e4 {[%clk 0:03:00]}  c5 {[%clk 0:02:59]} 2. c3 {[%clk 0:03:00]}  d5 {[%clk 0:02:59]} 3. exd5 {[%clk 0:03:01]}  Qxd5 {[%clk 0:02:59]} 4. d4 {[%clk 0:03:01]}  Nf6 {[%clk 0:02:59]} 5. Nf3 {[%clk 0:03:00]}  Bg4 {[%clk 0:02:59]} 6. dxc5 {[%clk 0:03:01]}  Qxd1+ {[%clk 0:02:58]} 7. Kxd1 {[%clk 0:03:02]}  Bxf3+ {[%clk 0:02:58]} 8. gxf3 {[%clk 0:03:02]}  Nc6 {[%clk 0:02:53]} 9. Be3 {[%clk 0:02:58]}  O-O-O+ {[%clk 0:02:50]} 10. Nd2 {[%clk 0:02:57]}  Nd5 {[%clk 0:02:44]} 11. Kc2 {[%clk 0:02:55]}  a5 {[%clk 0:02:33]} 12. Bc4 {[%clk 0:02:36]}  e6 {[%clk 0:02:27]} 13. Bxd5 {[%clk 0:02:33]}  Rxd5 {[%clk 0:02:28]} 14. Ne4 {[%clk 0:02:25]}  Ne5 {[%clk 0:02:20]} 15. f4 {[%clk 0:02:22]}  Nc4 {[%clk 0:02:13]} 16. Bd4 {[%clk 0:02:17]}  Rf5 {[%clk 0:02:00]} 17. b3 {[%clk 0:02:10]}  Rxf4 {[%clk 0:01:46]} 18. Kd3 {[%clk 0:01:41]}  Na3 {[%clk 0:01:43]} 19. Rac1 {[%clk 0:01:37]}  Nb5 {[%clk 0:01:38]} 20. Ke3 {[%clk 0:01:21]}  Rh4 {[%clk 0:01:32]} 21. Be5 {[%clk 0:01:14]}  f6 {[%clk 0:01:28]} 22. Bg3 {[%clk 0:01:14]}  Rh5 {[%clk 0:01:16]} 23. c4 {[%clk 0:01:14]}  Nc7 {[%clk 0:01:10]} 24. Nd6+ {[%clk 0:01:05]}  Bxd6 {[%clk 0:01:10]} 25. cxd6 {[%clk 0:01:05]}  Na6 {[%clk 0:01:10]} 26. Rhd1 {[%clk 0:01:04]}  Kd7 {[%clk 0:01:08]} 27. a3 {[%clk 0:01:03]}  Rc8 {[%clk 0:00:58]} 28. f3 {[%clk 0:01:01]}  Rc6 {[%clk 0:00:55]} 29. Rc3 {[%clk 0:00:46]}  Rb6 {[%clk 0:00:50]} 30. Ke2 {[%clk 0:00:37]}  Nc5 {[%clk 0:00:43]} 31. Rb1 {[%clk 0:00:34]}  e5 {[%clk 0:00:30]} 32. b4 {[%clk 0:00:17]}  Na4 {[%clk 0:00:20]} 33. Rd3 {[%clk 0:00:18]}  Rxd6 {[%clk 0:00:18]} 34. Rxd6+ {[%clk 0:00:15]}  Kxd6 {[%clk 0:00:19]} 35. bxa5 {[%clk 0:00:15]}  Nc3+ {[%clk 0:00:19]} 36. Kd3 {[%clk 0:00:16]}  Nxb1 {[%clk 0:00:20]} 0-1


[Site "https://www.chess.com"]

[Event "Titled Tuesday Blitz June 21 Late 2022"]
[White "Roque Sola, Gisela"]
[Black "Florescu, Codrut-Constantin"]
[WhiteFideId "5120241"]
[BlackFideId "1202200"]
[WhiteElo "1863"]
[BlackElo "2191"]
[Result "0-1"]
[Round "01"]
[TimeControl "180+1"]
[Date "2022.06.22"]
[WhiteClock "0:00:10"]
[BlackClock "0:00:16"]

1. e4 {[%clk 0:03:00]}  c5 {[%clk 0:02:59]} 2. Nf3 {[%clk 0:03:00]}  e6 {[%clk 0:03:00]} 3. d4 {[%clk 0:03:00]}  cxd4 {[%clk 0:03:00]} 4. Nxd4 {[%clk 0:03:01]}  a6 {[%clk 0:03:01]} 5. Nc3 {[%clk 0:03:00]}  Qc7 {[%clk 0:03:01]} 6. Bd3 {[%clk 0:02:50]}  Nf6 {[%clk 0:03:00]} 7. O-O {[%clk 0:02:48]}  Bd6 {[%clk 0:03:00]} 8. h3 {[%clk 0:02:47]}  Nc6 {[%clk 0:02:58]} 9. Nxc6 {[%clk 0:02:38]}  dxc6 {[%clk 0:02:59]} 10. Qe2 {[%clk 0:02:36]}  e5 {[%clk 0:02:59]} 11. Bg5 {[%clk 0:02:34]}  Nd7 {[%clk 0:02:54]} 12. Bc4 {[%clk 0:02:32]}  b5 {[%clk 0:02:51]} 13. Bb3 {[%clk 0:02:30]}  Nc5 {[%clk 0:02:51]} 14. Rad1 {[%clk 0:02:26]}  O-O {[%clk 0:02:45]} 15. Be3 {[%clk 0:02:12]}  Ne6 {[%clk 0:02:44]} 16. Rd2 {[%clk 0:02:08]}  Bb4 {[%clk 0:02:35]} 17. Rfd1 {[%clk 0:01:59]}  Ba5 {[%clk 0:02:06]} 18. Qh5 {[%clk 0:01:39]}  g6 {[%clk 0:01:52]} 19. Qh4 {[%clk 0:01:36]}  Bb6 {[%clk 0:01:49]} 20. Bh6 {[%clk 0:01:34]}  Re8 {[%clk 0:01:28]} 21. Bxe6 {[%clk 0:01:26]}  fxe6 {[%clk 0:01:27]} 22. Qf6 {[%clk 0:01:23]}  Qf7 {[%clk 0:01:26]} 23. Bg5 {[%clk 0:01:11]}  Qxf6 {[%clk 0:01:17]} 24. Bxf6 {[%clk 0:01:10]}  Bd4 {[%clk 0:01:17]} 25. Ne2 {[%clk 0:00:59]}  Bxb2 {[%clk 0:01:11]} 26. c3 {[%clk 0:00:59]}  Ba3 {[%clk 0:01:11]} 27. Bxe5 {[%clk 0:00:58]}  Bf8 {[%clk 0:00:56]} 28. Rd8 {[%clk 0:00:52]}  Rxd8 {[%clk 0:00:47]} 29. Rxd8 {[%clk 0:00:53]}  Kf7 {[%clk 0:00:40]} 30. Nd4 {[%clk 0:00:47]}  c5 {[%clk 0:00:28]} 31. Nc6 {[%clk 0:00:36]}  b4 {[%clk 0:00:28]} 32. cxb4 {[%clk 0:00:33]}  cxb4 {[%clk 0:00:29]} 33. Nb8 {[%clk 0:00:31]}  Bb7 {[%clk 0:00:18]} 34. Rd7+ {[%clk 0:00:31]}  Ke8 {[%clk 0:00:19]} 35. Rxb7 {[%clk 0:00:31]}  a5 {[%clk 0:00:20]} 36. Nc6 {[%clk 0:00:29]}  a4 {[%clk 0:00:19]} 37. Nxb4 {[%clk 0:00:29]}  Rc8 {[%clk 0:00:20]} 38. Rb8 {[%clk 0:00:28]}  Rxb8 {[%clk 0:00:20]} 39. Bxb8 {[%clk 0:00:28]}  Kd7 {[%clk 0:00:20]} 40. Nc2 {[%clk 0:00:23]}  Bc5 {[%clk 0:00:20]} 41. Be5 {[%clk 0:00:22]}  Kc6 {[%clk 0:00:21]} 42. Kf1 {[%clk 0:00:20]}  Kb5 {[%clk 0:00:21]} 43. Ke2 {[%clk 0:00:20]}  Kc4 {[%clk 0:00:22]} 44. f3 {[%clk 0:00:18]}  Be7 {[%clk 0:00:21]} 45. f4 {[%clk 0:00:17]}  Bh4 {[%clk 0:00:20]} 46. g4 {[%clk 0:00:15]}  Bg3 {[%clk 0:00:20]} 47. Bd6 {[%clk 0:00:14]}  Kc3 {[%clk 0:00:19]} 48. Ne3 {[%clk 0:00:13]}  Kb2 {[%clk 0:00:19]} 49. Nc4+ {[%clk 0:00:12]}  Kxa2 {[%clk 0:00:19]} 50. Kf3 {[%clk 0:00:12]}  Be1 {[%clk 0:00:19]} 51. f5 {[%clk 0:00:12]}  exf5 {[%clk 0:00:18]} 52. exf5 {[%clk 0:00:13]}  gxf5 {[%clk 0:00:18]} 53. g5 {[%clk 0:00:13]}  Kb3 {[%clk 0:00:19]} 54. Ne3 {[%clk 0:00:11]}  Bb4 {[%clk 0:00:17]} 55. Be5 {[%clk 0:00:10]}  a3 {[%clk 0:00:16]} 56. Nd5 {[%clk 0:00:10]}  Bc5 {[%clk 0:00:16]} 57. Kf4 {[%clk 0:00:10]}  a2 {[%clk 0:00:16]} 58. Kxf5 {[%clk 0:00:10]}  Ba3 {[%clk 0:00:16]} 0-1


[Site "https://www.chess.com"]

[Event "Titled Tuesday Blitz June 21 Late 2022"]
[White "Rosenberg, Evan S"]
[Black "Fishbein, Alexander"]
[WhiteFideId "2019299"]
[BlackFideId "2000377"]
[WhiteElo "2350"]
[BlackElo "2442"]
[Result "0-1"]
[Round "01"]
[TimeControl "180+1"]
[Date "2022.06.22"]
[WhiteClock "0:00:01"]
[BlackClock "0:00:26"]

1. e4 {[%clk 0:03:00]}  e6 {[%clk 0:02:56]} 2. d4 {[%clk 0:03:00]}  d5 {[%clk 0:02:55]} 3. e5 {[%clk 0:03:01]}  c5 {[%clk 0:02:55]} 4. c3 {[%clk 0:03:01]}  Nc6 {[%clk 0:02:55]} 5. Nf3 {[%clk 0:03:01]}  Nh6 {[%clk 0:02:54]} 6. Bd3 {[%clk 0:02:57]}  cxd4 {[%clk 0:02:52]} 7. cxd4 {[%clk 0:02:50]}  Nf5 {[%clk 0:02:52]} 8. O-O {[%clk 0:02:41]}  Nfxd4 {[%clk 0:02:50]} 9. Nxd4 {[%clk 0:02:38]}  Nxd4 {[%clk 0:02:50]} 10. Nc3 {[%clk 0:02:33]}  Be7 {[%clk 0:02:47]} 11. Qg4 {[%clk 0:02:20]}  Nc6 {[%clk 0:02:43]} 12. Qxg7 {[%clk 0:02:19]}  Kd7 {[%clk 0:02:43]} 13. Qxf7 {[%clk 0:02:04]}  Qe8 {[%clk 0:02:42]} 14. Qxe8+ {[%clk 0:01:48]}  Rxe8 {[%clk 0:02:43]} 15. f4 {[%clk 0:01:43]}  h5 {[%clk 0:02:43]} 16. Be2 {[%clk 0:01:25]}  Rh8 {[%clk 0:02:39]} 17. f5 {[%clk 0:01:19]}  exf5 {[%clk 0:02:32]} 18. Nxd5 {[%clk 0:01:16]}  Bc5+ {[%clk 0:02:31]} 19. Kh1 {[%clk 0:01:15]}  Nxe5 {[%clk 0:02:26]} 20. Bf4 {[%clk 0:01:01]}  Ng4 {[%clk 0:02:20]} 21. Bb5+ {[%clk 0:00:57]}  Ke6 {[%clk 0:02:16]} 22. Nc7+ {[%clk 0:00:56]}  Kf6 {[%clk 0:02:15]} 23. Nxa8 {[%clk 0:00:49]}  Nf2+ {[%clk 0:02:12]} 24. Rxf2 {[%clk 0:00:49]}  Bxf2 {[%clk 0:02:12]} 25. Nc7 {[%clk 0:00:46]}  Rd8 {[%clk 0:02:03]} 26. Rf1 {[%clk 0:00:38]}  Bb6 {[%clk 0:01:58]} 27. h4 {[%clk 0:00:38]}  Rd4 {[%clk 0:01:43]} 28. Bg5+ {[%clk 0:00:34]}  Kf7 {[%clk 0:01:31]} 29. Ne8 {[%clk 0:00:25]}  a6 {[%clk 0:01:26]} 30. Be2 {[%clk 0:00:14]}  Kxe8 {[%clk 0:01:25]} 31. Bxh5+ {[%clk 0:00:15]}  Kf8 {[%clk 0:01:20]} 32. Rc1 {[%clk 0:00:13]}  Be6 {[%clk 0:01:16]} 33. Bf3 {[%clk 0:00:13]}  Rd7 {[%clk 0:01:09]} 34. h5 {[%clk 0:00:12]}  Bd4 {[%clk 0:01:05]} 35. b3 {[%clk 0:00:11]}  Kg7 {[%clk 0:00:59]} 36. h6+ {[%clk 0:00:10]}  Kg6 {[%clk 0:00:59]} 37. Bf4 {[%clk 0:00:11]}  Bf6 {[%clk 0:00:48]} 38. Kh2 {[%clk 0:00:08]}  Bg5 {[%clk 0:00:46]} 39. Bxg5 {[%clk 0:00:08]}  Kxg5 {[%clk 0:00:46]} 40. Rc8 {[%clk 0:00:05]}  Rh7 {[%clk 0:00:40]} 41. Rb8 {[%clk 0:00:04]}  b5 {[%clk 0:00:35]} 42. Rb6 {[%clk 0:00:03]}  Rxh6+ {[%clk 0:00:34]} 43. Kg3 {[%clk 0:00:03]}  f4+ {[%clk 0:00:33]} 44. Kf2 {[%clk 0:00:03]}  Bf5 {[%clk 0:00:27]} 45. Rxh6 {[%clk 0:00:02]}  Kxh6 {[%clk 0:00:27]} 46. Bb7 {[%clk 0:00:03]}  a5 {[%clk 0:00:27]} 47. Bc6 {[%clk 0:00:01]}  b4 {[%clk 0:00:26]} 48. Kf3 {[%clk 0:00:01]}  Kg5 {[%clk 0:00:26]} 0-1


[Site "https://www.chess.com"]

[Event "Titled Tuesday Blitz June 21 Late 2022"]
[White "Rustemov, Alexander"]
[Black "Silvestre, Christian"]
[WhiteFideId "4119002"]
[BlackFideId "30956269"]
[WhiteElo "2721"]
[BlackElo "2413"]
[Result "1-0"]
[Round "01"]
[TimeControl "180+1"]
[Date "2022.06.22"]
[WhiteClock "0:01:13"]
[BlackClock "0:00:03"]

1. d4 {[%clk 0:03:00]}  Nf6 {[%clk 0:02:58]} 2. c4 {[%clk 0:03:01]}  c5 {[%clk 0:02:57]} 3. d5 {[%clk 0:03:00]}  e5 {[%clk 0:02:56]} 4. Nc3 {[%clk 0:03:00]}  d6 {[%clk 0:02:55]} 5. e4 {[%clk 0:03:00]}  Be7 {[%clk 0:02:54]} 6. h3 {[%clk 0:02:59]}  O-O {[%clk 0:02:50]} 7. Bd3 {[%clk 0:03:00]}  Nfd7 {[%clk 0:02:48]} 8. Nf3 {[%clk 0:02:59]}  Re8 {[%clk 0:02:43]} 9. Be3 {[%clk 0:02:53]}  Nf8 {[%clk 0:02:43]} 10. h4 {[%clk 0:02:47]}  Nbd7 {[%clk 0:02:39]} 11. g3 {[%clk 0:02:41]}  Nf6 {[%clk 0:02:36]} 12. Nh2 {[%clk 0:02:37]}  a6 {[%clk 0:02:22]} 13. a4 {[%clk 0:02:37]}  Qb6 {[%clk 0:02:05]} 14. Ra3 {[%clk 0:02:35]}  Bd8 {[%clk 0:02:02]} 15. a5 {[%clk 0:02:33]}  Qc7 {[%clk 0:01:58]} 16. Kf1 {[%clk 0:02:30]}  Bh3+ {[%clk 0:01:53]} 17. Kg1 {[%clk 0:02:30]}  Bd7 {[%clk 0:01:36]} 18. Kg2 {[%clk 0:02:29]}  Qc8 {[%clk 0:01:31]} 19. f3 {[%clk 0:02:26]}  b6 {[%clk 0:01:27]} 20. axb6 {[%clk 0:02:25]}  Bxb6 {[%clk 0:01:27]} 21. b3 {[%clk 0:02:23]}  Bh3+ {[%clk 0:01:17]} 22. Kf2 {[%clk 0:02:22]}  h5 {[%clk 0:01:15]} 23. Nf1 {[%clk 0:02:20]}  Bd7 {[%clk 0:01:07]} 24. Kg2 {[%clk 0:02:19]}  Ng6 {[%clk 0:01:06]} 25. Nd2 {[%clk 0:02:16]}  Qd8 {[%clk 0:01:05]} 26. Bg5 {[%clk 0:02:14]}  Ba5 {[%clk 0:01:03]} 27. Qc2 {[%clk 0:02:11]}  Bb4 {[%clk 0:01:01]} 28. Ra2 {[%clk 0:02:11]}  a5 {[%clk 0:00:57]} 29. Rha1 {[%clk 0:02:05]}  Rb8 {[%clk 0:00:55]} 30. Nd1 {[%clk 0:01:57]}  Qb6 {[%clk 0:00:51]} 31. Ne3 {[%clk 0:01:55]}  Nh7 {[%clk 0:00:41]} 32. Nf5 {[%clk 0:01:54]}  Nxg5 {[%clk 0:00:34]} 33. hxg5 {[%clk 0:01:54]}  h4 {[%clk 0:00:28]} 34. Nxh4 {[%clk 0:01:53]}  Bxd2 {[%clk 0:00:24]} 35. Qxd2 {[%clk 0:01:50]}  Qxb3 {[%clk 0:00:24]} 36. Nxg6 {[%clk 0:01:49]}  fxg6 {[%clk 0:00:22]} 37. Rxa5 {[%clk 0:01:49]}  Qb2 {[%clk 0:00:15]} 38. R5a2 {[%clk 0:01:46]}  Qd4 {[%clk 0:00:15]} 39. Be2 {[%clk 0:01:44]}  Rb3 {[%clk 0:00:13]} 40. Qxd4 {[%clk 0:01:44]}  exd4 {[%clk 0:00:12]} 41. Ra7 {[%clk 0:01:42]}  Rb2 {[%clk 0:00:09]} 42. R1a2 {[%clk 0:01:42]}  Reb8 {[%clk 0:00:07]} 43. Kf1 {[%clk 0:01:37]}  Bh3+ {[%clk 0:00:06]} 44. Ke1 {[%clk 0:01:37]}  Bg2 {[%clk 0:00:06]} 45. Rxb2 {[%clk 0:01:32]}  Rxb2 {[%clk 0:00:07]} 46. Ra6 {[%clk 0:01:31]}  d3 {[%clk 0:00:02]} 47. Bxd3 {[%clk 0:01:30]}  Bxf3 {[%clk 0:00:03]} 48. Rxd6 {[%clk 0:01:29]}  Rb3 {[%clk 0:00:03]} 49. Kd2 {[%clk 0:01:29]}  Rb2+ {[%clk 0:00:03]} 50. Ke3 {[%clk 0:01:29]}  Bg4 {[%clk 0:00:02]} 51. e5 {[%clk 0:01:23]}  Rb3 {[%clk 0:00:03]} 52. Kd2 {[%clk 0:01:21]}  Bf5 {[%clk 0:00:03]} 53. Bxf5 {[%clk 0:01:17]}  gxf5 {[%clk 0:00:04]} 54. e6 {[%clk 0:01:16]}  Kf8 {[%clk 0:00:04]} 55. Rd8+ {[%clk 0:01:15]}  Ke7 {[%clk 0:00:04]} 56. Rd7+ {[%clk 0:01:16]}  Ke8 {[%clk 0:00:04]} 57. Rxg7 {[%clk 0:01:14]}  Rf3 {[%clk 0:00:03]} 58. d6 {[%clk 0:01:13]} 1-0


[Site "https://www.chess.com"]

[Event "Titled Tuesday Blitz June 21 Late 2022"]
[White "Sailer, Mike"]
[Black "Sohal, Tanraj"]
[WhiteFideId "2012901"]
[BlackFideId "2608499"]
[WhiteElo "2109"]
[BlackElo "2200"]
[Result "0-1"]
[Round "01"]
[TimeControl "180+1"]
[Date "2022.06.22"]
[WhiteClock "0:00:01"]
[BlackClock "0:01:54"]

1. d4 {[%clk 0:02:57]}  g6 {[%clk 0:02:58]} 2. Nf3 {[%clk 0:02:58]}  Bg7 {[%clk 0:02:59]} 3. Bf4 {[%clk 0:02:58]}  Nf6 {[%clk 0:02:58]} 4. e3 {[%clk 0:02:59]}  d5 {[%clk 0:02:59]} 5. Be2 {[%clk 0:02:59]}  O-O {[%clk 0:02:59]} 6. O-O {[%clk 0:02:57]}  b6 {[%clk 0:02:59]} 7. h3 {[%clk 0:02:57]}  Bb7 {[%clk 0:02:59]} 8. c4 {[%clk 0:02:56]}  Nbd7 {[%clk 0:02:59]} 9. cxd5 {[%clk 0:02:56]}  Nxd5 {[%clk 0:02:59]} 10. Bh2 {[%clk 0:02:56]}  c5 {[%clk 0:03:00]} 11. Nc3 {[%clk 0:02:55]}  Nxc3 {[%clk 0:02:57]} 12. bxc3 {[%clk 0:02:55]}  Rc8 {[%clk 0:02:58]} 13. Qa4 {[%clk 0:02:53]}  Ra8 {[%clk 0:02:57]} 14. Rfd1 {[%clk 0:02:45]}  Qc8 {[%clk 0:02:57]} 15. Rac1 {[%clk 0:02:43]}  Re8 {[%clk 0:02:55]} 16. Bb5 {[%clk 0:02:41]}  Rd8 {[%clk 0:02:53]} 17. Nd2 {[%clk 0:02:16]}  a6 {[%clk 0:02:52]} 18. Be2 {[%clk 0:02:09]}  b5 {[%clk 0:02:52]} 19. Qa3 {[%clk 0:02:03]}  e5 {[%clk 0:02:51]} 20. Bf3 {[%clk 0:01:57]}  exd4 {[%clk 0:02:50]} 21. Bxb7 {[%clk 0:01:57]}  Qxb7 {[%clk 0:02:50]} 22. cxd4 {[%clk 0:01:55]}  cxd4 {[%clk 0:02:49]} 23. exd4 {[%clk 0:01:50]}  Nb6 {[%clk 0:02:45]} 24. Be5 {[%clk 0:01:42]}  Rac8 {[%clk 0:02:37]} 25. Rxc8 {[%clk 0:01:40]}  Qxc8 {[%clk 0:02:35]} 26. Bxg7 {[%clk 0:01:37]}  Kxg7 {[%clk 0:02:36]} 27. Nf3 {[%clk 0:01:34]}  Nc4 {[%clk 0:02:35]} 28. Qe7 {[%clk 0:01:24]}  Qd7 {[%clk 0:02:35]} 29. Qc5 {[%clk 0:00:59]}  Qd6 {[%clk 0:02:35]} 30. Qa7 {[%clk 0:00:57]}  Rd7 {[%clk 0:02:34]} 31. Qa8 {[%clk 0:00:55]}  a5 {[%clk 0:02:29]} 32. Re1 {[%clk 0:00:52]}  Rd8 {[%clk 0:02:14]} 33. Qb7 {[%clk 0:00:51]}  Qd7 {[%clk 0:02:14]} 34. Qa6 {[%clk 0:00:41]}  a4 {[%clk 0:02:13]} 35. g4 {[%clk 0:00:23]}  Qd5 {[%clk 0:02:09]} 36. Ne5 {[%clk 0:00:14]}  Qxd4 {[%clk 0:01:59]} 37. Nxc4 {[%clk 0:00:11]}  Qxc4 {[%clk 0:01:58]} 38. Qb7 {[%clk 0:00:08]}  Rd3 {[%clk 0:01:56]} 39. Re7 {[%clk 0:00:04]}  Rxh3 {[%clk 0:01:56]} 40. Qg2 {[%clk 0:00:02]}  Qc1+ {[%clk 0:01:54]} 41. Qf1 {[%clk 0:00:01]}  Rh1+ {[%clk 0:01:54]} 0-1


[Site "https://www.chess.com"]

[Event "Titled Tuesday Blitz June 21 Late 2022"]
[White "Sanchez, Robert"]
[Black "Fiorito, Fabian"]
[WhiteFideId "2034360"]
[BlackFideId "100200"]
[WhiteElo "2002"]
[BlackElo "2395"]
[Result "1-0"]
[Round "01"]
[TimeControl "180+1"]
[Date "2022.06.22"]
[WhiteClock "0:00:07"]
[BlackClock "0:00:07"]

1. e4 {[%clk 0:03:00]}  c6 {[%clk 0:03:00]} 2. d4 {[%clk 0:03:00]}  d5 {[%clk 0:03:00]} 3. e5 {[%clk 0:03:01]}  Bf5 {[%clk 0:03:00]} 4. Nf3 {[%clk 0:03:00]}  e6 {[%clk 0:02:59]} 5. Be2 {[%clk 0:03:01]}  Nd7 {[%clk 0:02:58]} 6. O-O {[%clk 0:03:00]}  h6 {[%clk 0:02:58]} 7. Nbd2 {[%clk 0:03:01]}  Ne7 {[%clk 0:02:58]} 8. Nb3 {[%clk 0:03:01]}  Bh7 {[%clk 0:02:57]} 9. c4 {[%clk 0:02:55]}  dxc4 {[%clk 0:02:55]} 10. Bxc4 {[%clk 0:02:55]}  Nb6 {[%clk 0:02:55]} 11. Be2 {[%clk 0:02:54]}  Ned5 {[%clk 0:02:55]} 12. Be3 {[%clk 0:02:49]}  Be7 {[%clk 0:02:54]} 13. Rc1 {[%clk 0:02:41]}  O-O {[%clk 0:02:48]} 14. Nc5 {[%clk 0:02:40]}  Nxe3 {[%clk 0:02:20]} 15. fxe3 {[%clk 0:02:41]}  Nd5 {[%clk 0:02:19]} 16. Qd2 {[%clk 0:02:28]}  b6 {[%clk 0:02:14]} 17. Nd3 {[%clk 0:02:27]}  c5 {[%clk 0:02:09]} 18. a3 {[%clk 0:01:51]}  Rc8 {[%clk 0:01:58]} 19. Nf2 {[%clk 0:01:48]}  cxd4 {[%clk 0:01:42]} 20. exd4 {[%clk 0:01:44]}  Qd7 {[%clk 0:01:38]} 21. Rxc8 {[%clk 0:01:20]}  Rxc8 {[%clk 0:01:37]} 22. Rc1 {[%clk 0:01:20]}  Rd8 {[%clk 0:01:33]} 23. Bd3 {[%clk 0:01:06]}  Bxd3 {[%clk 0:01:08]} 24. Qxd3 {[%clk 0:01:06]}  Nf4 {[%clk 0:01:04]} 25. Qe4 {[%clk 0:01:04]}  Bg5 {[%clk 0:01:01]} 26. Rd1 {[%clk 0:00:48]}  Qb5 {[%clk 0:01:00]} 27. Re1 {[%clk 0:00:20]}  Qxb2 {[%clk 0:00:55]} 28. h4 {[%clk 0:00:20]}  Bxh4 {[%clk 0:00:43]} 29. Nxh4 {[%clk 0:00:20]}  Rxd4 {[%clk 0:00:43]} 30. Qa8+ {[%clk 0:00:21]}  Kh7 {[%clk 0:00:43]} 31. Nf3 {[%clk 0:00:19]}  Rd5 {[%clk 0:00:42]} 32. Qe8 {[%clk 0:00:18]}  Kg6 {[%clk 0:00:12]} 33. Qe7 {[%clk 0:00:14]}  Qc3 {[%clk 0:00:07]} 34. Qh4 {[%clk 0:00:13]}  Nd3 {[%clk 0:00:06]} 35. Qe4+ {[%clk 0:00:08]}  f5 {[%clk 0:00:06]} 36. exf6+ {[%clk 0:00:08]}  Kxf6 {[%clk 0:00:07]} 37. Qxe6# {[%clk 0:00:07]} 1-0


[Site "https://www.chess.com"]

[Event "Titled Tuesday Blitz June 21 Late 2022"]
[White "Sernecki, Franciszek"]
[Black "Burke, Paul"]
[WhiteFideId "1169297"]
[BlackFideId "2605767"]
[WhiteElo "2168"]
[BlackElo "2012"]
[Result "1-0"]
[Round "01"]
[TimeControl "180+1"]
[Date "2022.06.22"]
[WhiteClock "0:00:05"]
[BlackClock "0:00:06"]

1. e4 {[%clk 0:02:59]}  e5 {[%clk 0:02:59]} 2. Nf3 {[%clk 0:02:56]}  Nc6 {[%clk 0:02:58]} 3. Bb5 {[%clk 0:02:53]}  f5 {[%clk 0:02:58]} 4. d3 {[%clk 0:02:49]}  Nf6 {[%clk 0:02:57]} 5. O-O {[%clk 0:02:43]}  Be7 {[%clk 0:02:56]} 6. exf5 {[%clk 0:02:35]}  O-O {[%clk 0:02:54]} 7. Bxc6 {[%clk 0:02:35]}  dxc6 {[%clk 0:02:54]} 8. Nxe5 {[%clk 0:02:35]}  Bxf5 {[%clk 0:02:38]} 9. Nc3 {[%clk 0:02:24]}  Bd6 {[%clk 0:02:36]} 10. d4 {[%clk 0:02:17]}  c5 {[%clk 0:02:35]} 11. Nf3 {[%clk 0:02:13]}  Bg4 {[%clk 0:02:33]} 12. d5 {[%clk 0:02:02]}  Nd7 {[%clk 0:02:20]} 13. Ne4 {[%clk 0:01:46]}  Bxf3 {[%clk 0:02:04]} 14. gxf3 {[%clk 0:01:47]}  Qh4 {[%clk 0:01:48]} 15. Nxd6 {[%clk 0:01:36]}  cxd6 {[%clk 0:01:40]} 16. f4 {[%clk 0:01:34]}  Rf6 {[%clk 0:01:35]} 17. Qf3 {[%clk 0:01:19]}  Raf8 {[%clk 0:01:12]} 18. Kh1 {[%clk 0:01:14]}  Rg6 {[%clk 0:00:56]} 19. Qe3 {[%clk 0:00:20]}  Nf6 {[%clk 0:00:40]} 20. Bd2 {[%clk 0:00:17]}  Ng4 {[%clk 0:00:28]} 21. Qg3 {[%clk 0:00:17]}  Qh5 {[%clk 0:00:26]} 22. f3 {[%clk 0:00:13]}  Ne3 {[%clk 0:00:21]} 23. Qf2 {[%clk 0:00:14]}  Nf5 {[%clk 0:00:21]} 24. Rg1 {[%clk 0:00:12]}  Rff6 {[%clk 0:00:20]} 25. Bc3 {[%clk 0:00:12]}  Rf7 {[%clk 0:00:18]} 26. Rxg6 {[%clk 0:00:10]}  Qxg6 {[%clk 0:00:17]} 27. Rg1 {[%clk 0:00:11]}  Qh5 {[%clk 0:00:17]} 28. Rg5 {[%clk 0:00:10]}  Qh4 {[%clk 0:00:11]} 29. Qe2 {[%clk 0:00:06]}  h6 {[%clk 0:00:07]} 30. Qe8+ {[%clk 0:00:05]}  Rf8 {[%clk 0:00:07]} 31. Qe6+ {[%clk 0:00:05]}  Rf7 {[%clk 0:00:06]} 32. Rxf5 {[%clk 0:00:05]} 1-0


[Site "https://www.chess.com"]

[Event "Titled Tuesday Blitz June 21 Late 2022"]
[White "Shapiro, Daniel"]
[Black "Navarrete Mendez, Gonzalo Alberto"]
[WhiteFideId "2001780"]
[BlackFideId "5106850"]
[WhiteElo "2242"]
[BlackElo "2261"]
[Result "1-0"]
[Round "01"]
[TimeControl "180+1"]
[Date "2022.06.22"]
[WhiteClock "0:00:11"]
[BlackClock "0:00:02"]

1. d4 {[%clk 0:03:00]}  d5 {[%clk 0:02:59]} 2. c4 {[%clk 0:02:58]}  dxc4 {[%clk 0:03:00]} 3. e4 {[%clk 0:02:56]}  b5 {[%clk 0:03:00]} 4. a4 {[%clk 0:02:54]}  c6 {[%clk 0:03:00]} 5. axb5 {[%clk 0:02:51]}  cxb5 {[%clk 0:03:01]} 6. b3 {[%clk 0:02:52]}  e5 {[%clk 0:02:59]} 7. bxc4 {[%clk 0:02:41]}  Nf6 {[%clk 0:02:56]} 8. cxb5 {[%clk 0:02:26]}  Nxe4 {[%clk 0:02:53]} 9. Nf3 {[%clk 0:02:25]}  Bb4+ {[%clk 0:02:50]} 10. Nbd2 {[%clk 0:02:17]}  O-O {[%clk 0:02:47]} 11. Bd3 {[%clk 0:02:13]}  Bb7 {[%clk 0:02:39]} 12. Qc2 {[%clk 0:02:05]}  exd4 {[%clk 0:02:25]} 13. Bxe4 {[%clk 0:01:47]}  Bxe4 {[%clk 0:02:25]} 14. Qxe4 {[%clk 0:01:47]}  Re8 {[%clk 0:02:25]} 15. Ne5 {[%clk 0:01:47]}  Nd7 {[%clk 0:02:16]} 16. f4 {[%clk 0:01:44]}  Qh4+ {[%clk 0:01:59]} 17. g3 {[%clk 0:01:32]}  Qh3 {[%clk 0:00:57]} 18. Qd5 {[%clk 0:01:30]}  Nxe5 {[%clk 0:00:36]} 19. fxe5 {[%clk 0:01:27]}  Rad8 {[%clk 0:00:36]} 20. Qe4 {[%clk 0:01:21]}  f6 {[%clk 0:00:26]} 21. Kf2 {[%clk 0:01:13]}  Rxe5 {[%clk 0:00:23]} 22. Qd3 {[%clk 0:00:52]}  Rf5+ {[%clk 0:00:20]} 23. Kg1 {[%clk 0:00:52]}  Re8 {[%clk 0:00:18]} 24. Nf3 {[%clk 0:00:31]}  Rxf3 {[%clk 0:00:14]} 25. Qxf3 {[%clk 0:00:31]}  Re1+ {[%clk 0:00:13]} 26. Kf2 {[%clk 0:00:31]}  Re5 {[%clk 0:00:09]} 27. Bf4 {[%clk 0:00:27]}  Bc5 {[%clk 0:00:06]} 28. Rhc1 {[%clk 0:00:21]}  d3+ {[%clk 0:00:04]} 29. Rxc5 {[%clk 0:00:20]}  Re2+ {[%clk 0:00:04]} 30. Qxe2 {[%clk 0:00:16]}  dxe2 {[%clk 0:00:04]} 31. Kxe2 {[%clk 0:00:16]}  Qxh2+ {[%clk 0:00:04]} 32. Kf3 {[%clk 0:00:16]}  f5 {[%clk 0:00:02]} 33. Rxa7 {[%clk 0:00:13]}  Qh5+ {[%clk 0:00:02]} 34. Ke3 {[%clk 0:00:11]} 1-0


[Site "https://www.chess.com"]